[Event "*** Titled Tuesday Blitz"]
[Site "Chess.com"]
[Date "2021.03.02"]
[Round "1"]
[White "Hangar-18"]
[Black "Kobalia"]
[Result "0-1"]
[WhiteElo "2360"]
[BlackElo "2683"]
[TimeControl "180+1"]
[EndTime "10:04:25 PST"]
[Termination "Kobalia won by resignation"]

1. c4 {[%clk 0:03:00.9]} 1... Nf6 {[%clk 0:02:58.6]} 2. Nc3 {[%clk 0:03:00.4]}
2... g6 {[%clk 0:02:58.8]} 3. Nf3 {[%clk 0:02:59]} 3... Bg7 {[%clk 0:02:58.4]}
4. g3 {[%clk 0:02:58.6]} 4... O-O {[%clk 0:02:58.5]} 5. Bg2 {[%clk 0:02:57.7]}
5... d6 {[%clk 0:02:58.9]} 6. d4 {[%clk 0:02:55.8]} 6... Nc6 {[%clk 0:02:58.3]}
7. O-O {[%clk 0:02:54.7]} 7... a6 {[%clk 0:02:58.5]} 8. h3 {[%clk 0:02:53.5]}
8... Bd7 {[%clk 0:02:58.6]} 9. e4 {[%clk 0:02:43.9]} 9... e5 {[%clk 0:02:57.4]}
10. d5 {[%clk 0:02:41.5]} 10... Ne7 {[%clk 0:02:56.8]} 11. c5 {[%clk 0:02:40.4]}
11... Ne8 {[%clk 0:02:55.1]} 12. cxd6 {[%clk 0:02:39.4]} 12... cxd6 {[%clk
0:02:52.8]} 13. Nd2 {[%clk 0:02:32.2]} 13... f5 {[%clk 0:02:51.5]} 14. exf5
{[%clk 0:02:22.7]} 14... gxf5 {[%clk 0:02:50.7]} 15. f4 {[%clk 0:02:20.5]} 15...
e4 {[%clk 0:02:44.8]} 16. Nc4 {[%clk 0:02:15.3]} 16... Rc8 {[%clk 0:02:42.1]}
17. Ne3 {[%clk 0:02:09.9]} 17... Nf6 {[%clk 0:02:38.5]} 18. g4 {[%clk
0:01:59.2]} 18... Qb6 {[%clk 0:02:30]} 19. Kh2 {[%clk 0:01:52.5]} 19... Kh8
{[%clk 0:02:27.1]} 20. g5 {[%clk 0:01:15.8]} 20... Ne8 {[%clk 0:02:26.2]} 21.
Ne2 {[%clk 0:01:09.9]} 21... Nc7 {[%clk 0:02:24.8]} 22. Ng3 {[%clk 0:00:57.5]}
22... Bb5 {[%clk 0:02:13.5]} 23. Rf2 {[%clk 0:00:54.3]} 23... Bd3 {[%clk
0:02:12.9]} 24. Nh5 {[%clk 0:00:48.2]} 24... Bd4 {[%clk 0:02:11.8]} 25. Qe1
{[%clk 0:00:40.7]} 25... Ncxd5 {[%clk 0:02:11.1]} 0-1

[Event "*** Titled Tuesday Blitz"]
[Site "Chess.com"]
[Date "2021.03.02"]
[Round "1"]
[White "Korchmar_Vasiliy"]
[Black "AsaHoffmann"]
[Result "1-0"]
[WhiteElo "2614"]
[BlackElo "2309"]
[TimeControl "180+1"]
[EndTime "10:04:28 PST"]
[Termination "Korchmar_Vasiliy won by checkmate"]

1. e4 {[%clk 0:03:00.5]} 1... d6 {[%clk 0:02:46.4]} 2. d4 {[%clk 0:02:59.2]}
2... Nf6 {[%clk 0:02:45.5]} 3. Nc3 {[%clk 0:02:55]} 3... c6 {[%clk 0:02:45.2]}
4. Nf3 {[%clk 0:02:51.1]} 4... Bg4 {[%clk 0:02:44.4]} 5. Be2 {[%clk 0:02:49.9]}
5... e6 {[%clk 0:02:43.9]} 6. h3 {[%clk 0:02:49]} 6... Bh5 {[%clk 0:02:43.5]} 7.
O-O {[%clk 0:02:47.5]} 7... Be7 {[%clk 0:02:42.4]} 8. e5 {[%clk 0:02:40.8]} 8...
dxe5 {[%clk 0:02:41.2]} 9. Nxe5 {[%clk 0:02:41.7]} 9... Bxe2 {[%clk 0:02:37.5]}
10. Qxe2 {[%clk 0:02:40.9]} 10... Nbd7 {[%clk 0:02:37.2]} 11. Bg5 {[%clk
0:02:36.6]} 11... Nxe5 {[%clk 0:02:35.4]} 12. dxe5 {[%clk 0:02:37.5]} 12... Nd5
{[%clk 0:02:35.2]} 13. Bxe7 {[%clk 0:02:38.1]} 13... Nxc3 {[%clk 0:02:33.1]} 14.
bxc3 {[%clk 0:02:34.7]} 14... Qxe7 {[%clk 0:02:32.9]} 15. Rad1 {[%clk 0:02:30]}
15... Qc5 {[%clk 0:02:21.4]} 16. Rd3 {[%clk 0:02:18.3]} 16... O-O {[%clk
0:02:19.3]} 17. Rfd1 {[%clk 0:02:16.8]} 17... h6 {[%clk 0:02:14.7]} 18. Qh5
{[%clk 0:02:07.1]} 18... Rae8 {[%clk 0:02:04.2]} 19. Rg3 {[%clk 0:01:32.8]}
19... Kh8 {[%clk 0:02:03.5]} 20. Rd4 {[%clk 0:01:29]} 20... Qe7 {[%clk
0:01:45.5]} 21. Rh4 {[%clk 0:01:22.4]} 21... f6 {[%clk 0:01:36]} 22. Rg6 {[%clk
0:01:11.9]} 22... Kg8 {[%clk 0:01:26.3]} 23. Qxh6 {[%clk 0:01:09]} 23... Kf7
{[%clk 0:01:24.3]} 24. Rxg7# {[%clk 0:01:07.8]} 1-0

[Event "*** Titled Tuesday Blitz"]
[Site "Chess.com"]
[Date "2021.03.02"]
[Round "1"]
[White "Ajedrez_con_German"]
[Black "Andrakhanova"]
[Result "1-0"]
[WhiteElo "2562"]
[BlackElo "2255"]
[TimeControl "180+1"]
[EndTime "10:04:30 PST"]
[Termination "Ajedrez_con_German won by resignation"]

1. b3 {[%clk 0:03:00.2]} 1... d5 {[%clk 0:02:59.8]} 2. Bb2 {[%clk 0:02:57.7]}
2... Nf6 {[%clk 0:03:00.1]} 3. e3 {[%clk 0:02:55.8]} 3... g6 {[%clk 0:03:00.4]}
4. Nf3 {[%clk 0:02:54.6]} 4... Bg7 {[%clk 0:03:00.4]} 5. c4 {[%clk 0:02:50.6]}
5... dxc4 {[%clk 0:02:56]} 6. bxc4 {[%clk 0:02:50]} 6... O-O {[%clk 0:02:56]} 7.
Be2 {[%clk 0:02:49.9]} 7... c5 {[%clk 0:02:55.7]} 8. O-O {[%clk 0:02:49.3]} 8...
b6 {[%clk 0:02:56.1]} 9. d4 {[%clk 0:02:49]} 9... cxd4 {[%clk 0:02:55.3]} 10.
exd4 {[%clk 0:02:48.7]} 10... Bb7 {[%clk 0:02:55.9]} 11. d5 {[%clk 0:02:48]}
11... Re8 {[%clk 0:02:54]} 12. Nc3 {[%clk 0:02:45.8]} 12... Nbd7 {[%clk
0:02:52.3]} 13. Nd4 {[%clk 0:02:44.1]} 13... Rc8 {[%clk 0:02:46.6]} 14. Re1
{[%clk 0:02:42.4]} 14... Ne5 {[%clk 0:02:41.5]} 15. Qa4 {[%clk 0:02:35.1]} 15...
a5 {[%clk 0:02:32.7]} 16. Rac1 {[%clk 0:02:32.9]} 16... Nfd7 {[%clk 0:02:26.4]}
17. Ncb5 {[%clk 0:02:24.2]} 17... Nc5 {[%clk 0:02:20.8]} 18. Qd1 {[%clk
0:02:18.1]} 18... e6 {[%clk 0:02:03.5]} 19. f4 {[%clk 0:02:09.6]} 19... exd5
{[%clk 0:01:51.2]} 20. fxe5 {[%clk 0:02:04.8]} 20... dxc4 {[%clk 0:01:50.1]} 21.
Bxc4 {[%clk 0:01:55.1]} 21... Qg5 {[%clk 0:01:44.9]} 22. Nf3 {[%clk 0:01:50.5]}
22... Qg4 {[%clk 0:01:27.8]} 23. Nd6 {[%clk 0:01:38.8]} 23... Rcd8 {[%clk
0:01:25.8]} 24. Bxf7+ {[%clk 0:01:37.9]} 24... Kh8 {[%clk 0:01:24.5]} 25. Bxe8
{[%clk 0:01:38.4]} 25... Ne4 {[%clk 0:01:17.9]} 26. Nf7+ {[%clk 0:01:22]} 1-0

[Event "*** Titled Tuesday Blitz"]
[Site "Chess.com"]
[Date "2021.03.02"]
[Round "1"]
[White "tigra"]
[Black "InitiatingASC"]
[Result "1-0"]
[WhiteElo "2851"]
[BlackElo "2437"]
[TimeControl "180+1"]
[EndTime "10:04:32 PST"]
[Termination "tigra won by resignation"]

1. e4 {[%clk 0:02:06.4]} 1... c5 {[%clk 0:02:58.7]} 2. Nf3 {[%clk 0:02:06]} 2...
Nc6 {[%clk 0:02:58.9]} 3. d4 {[%clk 0:02:05.7]} 3... cxd4 {[%clk 0:02:59.8]} 4.
Nxd4 {[%clk 0:02:06.6]} 4... Nf6 {[%clk 0:03:00.2]} 5. Nc3 {[%clk 0:02:06.5]}
5... e5 {[%clk 0:03:00.7]} 6. Nf5 {[%clk 0:02:05.9]} 6... h6 {[%clk 0:03:00.9]}
7. Ne3 {[%clk 0:02:05.1]} 7... d6 {[%clk 0:02:55.1]} 8. Bc4 {[%clk 0:02:03.8]}
8... Be6 {[%clk 0:02:55.2]} 9. Bb3 {[%clk 0:02:02.6]} 9... Be7 {[%clk
0:02:52.6]} 10. O-O {[%clk 0:02:00.6]} 10... O-O {[%clk 0:02:51.9]} 11. Ned5
{[%clk 0:01:55.8]} 11... Nd4 {[%clk 0:02:47.1]} 12. Nxf6+ {[%clk 0:01:50.6]}
12... Bxf6 {[%clk 0:02:45]} 13. Bd5 {[%clk 0:01:51.5]} 13... Qe7 {[%clk
0:02:39.2]} 14. Be3 {[%clk 0:01:50.5]} 14... Rac8 {[%clk 0:02:35.9]} 15. Rc1
{[%clk 0:01:49.9]} 15... Rfd8 {[%clk 0:02:35.2]} 16. Qd3 {[%clk 0:01:47.8]}
16... Rc5 {[%clk 0:02:27.1]} 17. Na4 {[%clk 0:01:42]} 17... Ra5 {[%clk
0:02:12.5]} 18. Nc3 {[%clk 0:01:36.5]} 18... Rc5 {[%clk 0:02:12.4]} 19. Kh1
{[%clk 0:01:35.1]} 19... Rdc8 {[%clk 0:02:12.3]} 20. f4 {[%clk 0:01:31.6]} 20...
Qc7 {[%clk 0:01:51.7]} 21. fxe5 {[%clk 0:01:25.9]} 21... dxe5 {[%clk 0:01:49.9]}
22. Bxh6 {[%clk 0:01:25.6]} 22... b5 {[%clk 0:01:36.6]} 23. Rxf6 {[%clk
0:01:23.3]} 23... Rxc3 {[%clk 0:01:27.3]} 24. bxc3 {[%clk 0:01:22.4]} 24... Qxc3
{[%clk 0:01:28.2]} 25. Qxc3 {[%clk 0:01:21.3]} 25... Rxc3 {[%clk 0:01:28.3]} 26.
Bd2 {[%clk 0:01:21.9]} 1-0

[Event "*** Titled Tuesday Blitz"]
[Site "Chess.com"]
[Date "2021.03.02"]
[Round "1"]
[White "vugarrasulov"]
[Black "ChessNinja48"]
[Result "1-0"]
[WhiteElo "2787"]
[BlackElo "2413"]
[TimeControl "180+1"]
[EndTime "10:04:32 PST"]
[Termination "vugarrasulov won by resignation"]

1. d4 {[%clk 0:03:00.9]} 1... Nf6 {[%clk 0:02:59.9]} 2. c4 {[%clk 0:03:00.5]}
2... e6 {[%clk 0:03:00.1]} 3. Nf3 {[%clk 0:03:00.5]} 3... d5 {[%clk 0:03:00.5]}
4. g3 {[%clk 0:02:59.9]} 4... Be7 {[%clk 0:03:00.1]} 5. Bg2 {[%clk 0:03:00]}
5... O-O {[%clk 0:03:00.8]} 6. O-O {[%clk 0:03:00.5]} 6... dxc4 {[%clk
0:02:59.7]} 7. Qc2 {[%clk 0:03:00]} 7... a6 {[%clk 0:03:00]} 8. a4 {[%clk
0:02:59.2]} 8... Nc6 {[%clk 0:02:59]} 9. Qxc4 {[%clk 0:02:59]} 9... a5 {[%clk
0:02:58]} 10. Nc3 {[%clk 0:02:56]} 10... Nb4 {[%clk 0:02:57]} 11. Rd1 {[%clk
0:02:51]} 11... c6 {[%clk 0:02:55.2]} 12. e4 {[%clk 0:02:49.9]} 12... b6 {[%clk
0:02:53]} 13. Qb3 {[%clk 0:02:44.4]} 13... Ba6 {[%clk 0:02:52.1]} 14. Bf1 {[%clk
0:02:33.9]} 14... Bxf1 {[%clk 0:02:50]} 15. Kxf1 {[%clk 0:02:34.8]} 15... Rc8
{[%clk 0:02:50.4]} 16. Kg2 {[%clk 0:02:35]} 16... Qd7 {[%clk 0:02:44.3]} 17. Bf4
{[%clk 0:02:34.2]} 17... Rfd8 {[%clk 0:02:43.5]} 18. Rac1 {[%clk 0:02:30.2]}
18... Qb7 {[%clk 0:02:42]} 19. h3 {[%clk 0:02:26.5]} 19... c5 {[%clk 0:02:38.1]}
20. dxc5 {[%clk 0:02:26.2]} 20... Bxc5 {[%clk 0:02:37.7]} 21. Rxd8+ {[%clk
0:02:25.4]} 21... Rxd8 {[%clk 0:02:37.9]} 22. Rd1 {[%clk 0:02:23.1]} 22... Nd3
{[%clk 0:02:12.8]} 23. Bg5 {[%clk 0:02:12.3]} 23... Be7 {[%clk 0:01:31.7]} 24.
Qb5 {[%clk 0:02:03.9]} 24... Qd7 {[%clk 0:01:03.1]} 25. Qxd7 {[%clk 0:02:00.9]}
25... Rxd7 {[%clk 0:01:01.3]} 26. e5 {[%clk 0:02:01.3]} 26... Nxb2 {[%clk
0:00:44.6]} 27. Rxd7 {[%clk 0:01:53.5]} 27... Nxd7 {[%clk 0:00:44.1]} 28. Bxe7
{[%clk 0:01:54.4]} 1-0

[Event "*** Titled Tuesday Blitz"]
[Site "Chess.com"]
[Date "2021.03.02"]
[Round "1"]
[White "pfalcon1949"]
[Black "Das_Virus_2020"]
[Result "0-1"]
[WhiteElo "2025"]
[BlackElo "2488"]
[TimeControl "180+1"]
[EndTime "10:04:38 PST"]
[Termination "Das_Virus_2020 won by resignation"]

1. c4 {[%clk 0:03:00.6]} 1... Nf6 {[%clk 0:02:58.8]} 2. Nc3 {[%clk 0:03:00.4]}
2... c5 {[%clk 0:02:56]} 3. g3 {[%clk 0:03:00.4]} 3... e6 {[%clk 0:02:53.8]} 4.
Bg2 {[%clk 0:02:56.2]} 4... a6 {[%clk 0:02:54.1]} 5. e4 {[%clk 0:02:54.6]} 5...
Qc7 {[%clk 0:02:52.2]} 6. Nge2 {[%clk 0:02:54.6]} 6... d6 {[%clk 0:02:51.3]} 7.
O-O {[%clk 0:02:54.5]} 7... Be7 {[%clk 0:02:51]} 8. d3 {[%clk 0:02:54.4]} 8...
O-O {[%clk 0:02:49.9]} 9. h3 {[%clk 0:02:49]} 9... Nbd7 {[%clk 0:02:46.5]} 10.
Be3 {[%clk 0:02:45.6]} 10... Rb8 {[%clk 0:02:45.6]} 11. a4 {[%clk 0:02:39.4]}
11... b6 {[%clk 0:02:45.1]} 12. Qd2 {[%clk 0:02:28.8]} 12... Bb7 {[%clk
0:02:42.6]} 13. Kh2 {[%clk 0:02:29.2]} 13... Rbd8 {[%clk 0:02:32.1]} 14. f4
{[%clk 0:02:29]} 14... Rfe8 {[%clk 0:02:22.3]} 15. Rab1 {[%clk 0:02:28.3]} 15...
Bf8 {[%clk 0:02:14.3]} 16. b4 {[%clk 0:02:19]} 16... cxb4 {[%clk 0:02:10.7]} 17.
Rxb4 {[%clk 0:02:18.3]} 17... d5 {[%clk 0:02:11]} 18. Rbb1 {[%clk 0:01:37]}
18... dxe4 {[%clk 0:02:10.5]} 19. dxe4 {[%clk 0:01:33]} 19... Bc5 {[%clk
0:01:47]} 20. e5 {[%clk 0:01:13.4]} 20... Bxg2 {[%clk 0:01:41]} 21. Kxg2 {[%clk
0:01:13.5]} 21... Nxe5 {[%clk 0:01:39.8]} 22. Qc1 {[%clk 0:01:09.7]} 22... Qc6+
{[%clk 0:01:34.4]} 23. Kh2 {[%clk 0:01:03.9]} 23... Nf3+ {[%clk 0:01:22]} 0-1

[Event "*** Titled Tuesday Blitz"]
[Site "Chess.com"]
[Date "2021.03.02"]
[Round "1"]
[White "Sibelephant"]
[Black "GasconJR"]
[Result "1-0"]
[WhiteElo "3049"]
[BlackElo "2473"]
[TimeControl "180+1"]
[EndTime "10:04:41 PST"]
[Termination "Sibelephant won by resignation"]

1. d4 {[%clk 0:02:59.5]} 1... Nf6 {[%clk 0:02:57.6]} 2. c4 {[%clk 0:02:59.3]}
2... g6 {[%clk 0:02:57.4]} 3. Nc3 {[%clk 0:02:58.5]} 3... Bg7 {[%clk 0:02:57.5]}
4. e4 {[%clk 0:02:58.3]} 4... d6 {[%clk 0:02:57.9]} 5. Be2 {[%clk 0:02:58.2]}
5... O-O {[%clk 0:02:56.7]} 6. h4 {[%clk 0:02:58.5]} 6... c5 {[%clk 0:02:41.9]}
7. d5 {[%clk 0:02:58.3]} 7... e6 {[%clk 0:02:39.2]} 8. h5 {[%clk 0:02:58.1]}
8... exd5 {[%clk 0:02:39.4]} 9. exd5 {[%clk 0:02:58.4]} 9... Re8 {[%clk
0:02:39.6]} 10. hxg6 {[%clk 0:02:56.8]} 10... hxg6 {[%clk 0:02:39.2]} 11. Bh6
{[%clk 0:02:56.9]} 11... Bxh6 {[%clk 0:02:36.6]} 12. Rxh6 {[%clk 0:02:56.7]}
12... Kg7 {[%clk 0:02:37.3]} 13. Qd2 {[%clk 0:02:55.4]} 13... Rh8 {[%clk
0:02:26.4]} 14. Rxh8 {[%clk 0:02:54.7]} 14... Qxh8 {[%clk 0:02:27.3]} 15. Qf4
{[%clk 0:02:43.7]} 15... Qd8 {[%clk 0:02:25.5]} 16. O-O-O {[%clk 0:02:42.1]}
16... a6 {[%clk 0:02:24]} 17. Nf3 {[%clk 0:02:42]} 17... b5 {[%clk 0:02:23.7]}
18. Ng5 {[%clk 0:02:08.4]} 18... Qe7 {[%clk 0:01:13.3]} 19. Rh1 {[%clk
0:02:05.4]} 19... Nh5 {[%clk 0:00:19.5]} 20. Bxh5 {[%clk 0:02:03.7]} 20... gxh5
{[%clk 0:00:18.9]} 21. Nce4 {[%clk 0:01:58]} 1-0

[Event "*** Titled Tuesday Blitz"]
[Site "Chess.com"]
[Date "2021.03.02"]
[Round "1"]
[White "Cuajada_Zero"]
[Black "Malev212"]
[Result "0-1"]
[WhiteElo "2250"]
[BlackElo "2562"]
[TimeControl "180+1"]
[EndTime "10:04:44 PST"]
[Termination "Malev212 won by resignation"]

1. d4 {[%clk 0:02:54.9]} 1... d6 {[%clk 0:02:57.8]} 2. e4 {[%clk 0:02:53.8]}
2... Nf6 {[%clk 0:02:56.6]} 3. f3 {[%clk 0:02:52.8]} 3... g6 {[%clk 0:02:55]} 4.
Be3 {[%clk 0:02:52.2]} 4... Nbd7 {[%clk 0:02:52.4]} 5. c4 {[%clk 0:02:50.9]}
5... Bg7 {[%clk 0:02:51.4]} 6. Nc3 {[%clk 0:02:50.4]} 6... O-O {[%clk
0:02:51.1]} 7. Qd2 {[%clk 0:02:49.3]} 7... a6 {[%clk 0:02:51.5]} 8. Bd3 {[%clk
0:02:48]} 8... c5 {[%clk 0:02:48]} 9. d5 {[%clk 0:02:38.8]} 9... b5 {[%clk
0:02:44.9]} 10. cxb5 {[%clk 0:02:36.3]} 10... Ne5 {[%clk 0:02:44.6]} 11. Nge2
{[%clk 0:02:32.9]} 11... Qa5 {[%clk 0:02:43.6]} 12. O-O {[%clk 0:02:23.8]} 12...
axb5 {[%clk 0:02:34]} 13. h3 {[%clk 0:02:20.3]} 13... b4 {[%clk 0:02:31.5]} 14.
Nd1 {[%clk 0:02:18.3]} 14... Nxd3 {[%clk 0:02:30.3]} 15. Qxd3 {[%clk 0:02:17.3]}
15... Ba6 {[%clk 0:02:30]} 16. Qd2 {[%clk 0:02:17.6]} 16... Nd7 {[%clk
0:02:29.2]} 17. f4 {[%clk 0:01:55.1]} 17... Nb6 {[%clk 0:02:26.7]} 18. Rf3
{[%clk 0:01:23.4]} 18... Nc4 {[%clk 0:02:24.5]} 19. Qc1 {[%clk 0:01:23.3]} 19...
Nxb2 {[%clk 0:02:22.6]} 20. Nxb2 {[%clk 0:01:21.5]} 20... Bxe2 {[%clk
0:02:21.9]} 21. Rf2 {[%clk 0:01:22.1]} 21... Bb5 {[%clk 0:02:18.1]} 22. f5
{[%clk 0:01:19.9]} 22... Qa3 {[%clk 0:02:12]} 23. Bh6 {[%clk 0:01:13.9]} 23...
Qc3 {[%clk 0:02:03.1]} 24. Bxg7 {[%clk 0:01:04.9]} 24... Qxc1+ {[%clk
0:02:01.7]} 25. Rxc1 {[%clk 0:01:04.9]} 25... Kxg7 {[%clk 0:02:02.2]} 26. Nc4
{[%clk 0:01:03.4]} 26... Bxc4 {[%clk 0:02:00.2]} 27. Rxc4 {[%clk 0:01:04.3]}
27... f6 {[%clk 0:01:58.2]} 28. g4 {[%clk 0:01:03.7]} 28... Ra3 {[%clk
0:01:57.3]} 29. Kg2 {[%clk 0:01:03.5]} 29... Rfa8 {[%clk 0:01:56.9]} 30. Rcc2
{[%clk 0:01:03]} 30... Re3 {[%clk 0:01:57.1]} 31. Rce2 {[%clk 0:01:02.9]} 31...
Raa3 {[%clk 0:01:54]} 32. Rxe3 {[%clk 0:01:00.5]} 32... Rxe3 {[%clk 0:01:53.2]}
33. Rf4 {[%clk 0:00:59.7]} 33... g5 {[%clk 0:01:52.4]} 34. Rf2 {[%clk
0:00:59.8]} 34... Rxe4 {[%clk 0:01:51.8]} 0-1

[Event "*** Titled Tuesday Blitz"]
[Site "Chess.com"]
[Date "2021.03.02"]
[Round "1"]
[White "Zemerovv"]
[Black "kikydu96"]
[Result "0-1"]
[WhiteElo "2261"]
[BlackElo "2569"]
[TimeControl "180+1"]
[EndTime "10:04:47 PST"]
[Termination "kikydu96 won by resignation"]

1. d4 {[%clk 0:03:00.4]} 1... Nf6 {[%clk 0:02:48.5]} 2. Nf3 {[%clk 0:03:00]}
2... g6 {[%clk 0:02:21.8]} 3. Nbd2 {[%clk 0:02:59.6]} 3... d5 {[%clk 0:02:20.9]}
4. c3 {[%clk 0:02:58.3]} 4... Bg7 {[%clk 0:02:20.8]} 5. g3 {[%clk 0:02:56.9]}
5... O-O {[%clk 0:02:20.2]} 6. Bg2 {[%clk 0:02:57.8]} 6... c5 {[%clk 0:02:18.7]}
7. O-O {[%clk 0:02:55.7]} 7... Nc6 {[%clk 0:02:18.7]} 8. e3 {[%clk 0:02:54.8]}
8... Re8 {[%clk 0:02:15.7]} 9. Re1 {[%clk 0:02:54.5]} 9... e5 {[%clk 0:02:14.2]}
10. dxe5 {[%clk 0:02:54.3]} 10... Nxe5 {[%clk 0:02:15.1]} 11. Nxe5 {[%clk
0:02:54.3]} 11... Rxe5 {[%clk 0:02:16]} 12. Nf3 {[%clk 0:02:54.1]} 12... Re8
{[%clk 0:02:15.7]} 13. Qb3 {[%clk 0:02:48.5]} 13... Rb8 {[%clk 0:02:03.9]} 14.
Qa3 {[%clk 0:02:47.3]} 14... Qb6 {[%clk 0:02:02]} 15. Nd2 {[%clk 0:02:41.8]}
15... Bd7 {[%clk 0:01:53.1]} 16. e4 {[%clk 0:02:40.1]} 16... Bc6 {[%clk
0:01:51.1]} 17. e5 {[%clk 0:02:38.1]} 17... Ng4 {[%clk 0:01:48.7]} 18. Nf3
{[%clk 0:02:34.6]} 18... Nxe5 {[%clk 0:01:45.5]} 19. Nxe5 {[%clk 0:02:33.4]}
19... Bxe5 {[%clk 0:01:40.2]} 20. Bh6 {[%clk 0:02:31.7]} 20... d4 {[%clk
0:01:34.6]} 21. Rad1 {[%clk 0:02:26]} 21... Bxg2 {[%clk 0:01:33.8]} 22. Kxg2
{[%clk 0:02:24.8]} 22... dxc3 {[%clk 0:01:29.4]} 23. bxc3 {[%clk 0:02:24.1]}
23... Qc6+ {[%clk 0:01:28.8]} 24. Kg1 {[%clk 0:02:23.6]} 24... a6 {[%clk
0:01:18.8]} 25. Rxe5 {[%clk 0:02:20.3]} 25... Rxe5 {[%clk 0:01:19.7]} 26. Bf4
{[%clk 0:02:19.9]} 26... Rbe8 {[%clk 0:01:19.6]} 27. Bxe5 {[%clk 0:02:18.3]}
27... Rxe5 {[%clk 0:01:20.5]} 28. Rd8+ {[%clk 0:02:15.1]} 28... Kg7 {[%clk
0:01:20.2]} 29. Qc1 {[%clk 0:02:14.4]} 29... Qe6 {[%clk 0:01:15.8]} 30. Rd1
{[%clk 0:02:13.1]} 30... Qxa2 {[%clk 0:01:14.2]} 31. Qf4 {[%clk 0:02:08.6]}
31... Qe6 {[%clk 0:01:11.7]} 32. h4 {[%clk 0:02:05]} 32... Re1+ {[%clk
0:01:09.4]} 33. Rxe1 {[%clk 0:02:04.2]} 33... Qxe1+ {[%clk 0:01:10.3]} 34. Kg2
{[%clk 0:02:03.2]} 34... Qe6 {[%clk 0:01:10.1]} 35. c4 {[%clk 0:02:01.8]} 35...
h5 {[%clk 0:01:09.5]} 36. Kh2 {[%clk 0:02:01.1]} 36... a5 {[%clk 0:01:08.9]} 37.
Qd2 {[%clk 0:02:00.5]} 37... Qxc4 {[%clk 0:01:08.3]} 38. Qxa5 {[%clk 0:01:58.1]}
38... Qd4 {[%clk 0:01:07.1]} 39. Qe1 {[%clk 0:01:57.1]} 39... c4 {[%clk
0:01:06.8]} 40. Kg1 {[%clk 0:01:57.3]} 40... c3 {[%clk 0:01:06.7]} 41. Qe2
{[%clk 0:01:56.1]} 41... b5 {[%clk 0:01:03.8]} 0-1

[Event "*** Titled Tuesday Blitz"]
[Site "Chess.com"]
[Date "2021.03.02"]
[Round "1"]
[White "GadimbayliA"]
[Black "Romadk"]
[Result "1-0"]
[WhiteElo "2822"]
[BlackElo "2419"]
[TimeControl "180+1"]
[EndTime "10:04:48 PST"]
[Termination "GadimbayliA won by resignation"]

1. e4 {[%clk 0:01:38.5]} 1... Nf6 {[%clk 0:02:58.9]} 2. e5 {[%clk 0:01:38.7]}
2... Nd5 {[%clk 0:02:59.1]} 3. d4 {[%clk 0:01:39]} 3... d6 {[%clk 0:02:59.5]} 4.
exd6 {[%clk 0:01:39.9]} 4... cxd6 {[%clk 0:02:59.4]} 5. Nf3 {[%clk 0:01:40.4]}
5... g6 {[%clk 0:02:58.8]} 6. Bc4 {[%clk 0:01:40.5]} 6... Nb6 {[%clk 0:02:58.2]}
7. Bb3 {[%clk 0:01:41.1]} 7... Bg7 {[%clk 0:02:58.5]} 8. Ng5 {[%clk 0:01:41.5]}
8... d5 {[%clk 0:02:55.7]} 9. O-O {[%clk 0:01:38.5]} 9... O-O {[%clk 0:02:55.4]}
10. c3 {[%clk 0:01:39]} 10... Nc6 {[%clk 0:02:55.3]} 11. Re1 {[%clk 0:01:39.2]}
11... Bf5 {[%clk 0:02:55]} 12. Bf4 {[%clk 0:01:38.3]} 12... Na5 {[%clk
0:02:54.1]} 13. Nd2 {[%clk 0:01:38.6]} 13... Nxb3 {[%clk 0:02:53.4]} 14. axb3
{[%clk 0:01:39.5]} 14... a6 {[%clk 0:02:50.1]} 15. b4 {[%clk 0:01:39.7]} 15...
Rc8 {[%clk 0:02:46.8]} 16. Ngf3 {[%clk 0:01:37.3]} 16... h6 {[%clk 0:02:41.1]}
17. h3 {[%clk 0:01:37]} 17... g5 {[%clk 0:02:41]} 18. Be5 {[%clk 0:01:37.5]}
18... Nc4 {[%clk 0:02:33.6]} 19. Nxc4 {[%clk 0:01:37.2]} 19... Rxc4 {[%clk
0:02:34.5]} 20. Bxg7 {[%clk 0:01:37.4]} 20... Kxg7 {[%clk 0:02:35.4]} 21. Ne5
{[%clk 0:01:36.6]} 21... Rc7 {[%clk 0:02:33]} 22. Ra5 {[%clk 0:01:35.7]} 22...
e6 {[%clk 0:02:31.5]} 23. Qe2 {[%clk 0:01:29.6]} 23... Qf6 {[%clk 0:02:28.8]}
24. Rc5 {[%clk 0:01:23.9]} 24... Rfc8 {[%clk 0:02:27.2]} 25. Nd7 {[%clk
0:01:20.4]} 25... Qd8 {[%clk 0:02:02.4]} 26. Nb6 {[%clk 0:01:19.6]} 26... Rxc5
{[%clk 0:01:58.9]} 27. bxc5 {[%clk 0:01:20.5]} 27... Rc7 {[%clk 0:01:57.5]} 28.
f3 {[%clk 0:01:20.1]} 28... Qf6 {[%clk 0:01:36.7]} 29. b4 {[%clk 0:01:16.3]}
29... Re7 {[%clk 0:01:33.7]} 30. Nxd5 {[%clk 0:01:15.9]} 1-0

[Event "*** Titled Tuesday Blitz"]
[Site "Chess.com"]
[Date "2021.03.02"]
[Round "1"]
[White "jaramsdal"]
[Black "davidkalashian"]
[Result "0-1"]
[WhiteElo "2274"]
[BlackElo "2579"]
[TimeControl "180+1"]
[EndTime "10:04:51 PST"]
[Termination "davidkalashian won by resignation"]

1. d4 {[%clk 0:02:20.4]} 1... Nf6 {[%clk 0:02:58.7]} 2. c4 {[%clk 0:02:20.4]}
2... e6 {[%clk 0:02:59.6]} 3. Nc3 {[%clk 0:02:20.8]} 3... Bb4 {[%clk 0:02:59.3]}
4. Qc2 {[%clk 0:02:20.7]} 4... c5 {[%clk 0:02:58.4]} 5. dxc5 {[%clk 0:02:20.3]}
5... O-O {[%clk 0:02:58.7]} 6. a3 {[%clk 0:02:18.9]} 6... Bxc5 {[%clk
0:02:57.2]} 7. b4 {[%clk 0:02:16.8]} 7... Be7 {[%clk 0:02:56]} 8. e4 {[%clk
0:02:15.2]} 8... d6 {[%clk 0:02:55.3]} 9. Bb2 {[%clk 0:02:13.9]} 9... b6 {[%clk
0:02:53.5]} 10. Bd3 {[%clk 0:02:13.7]} 10... Bb7 {[%clk 0:02:53]} 11. f4 {[%clk
0:02:10.3]} 11... Nbd7 {[%clk 0:02:51.2]} 12. Nf3 {[%clk 0:02:08.5]} 12... a6
{[%clk 0:02:47.3]} 13. O-O {[%clk 0:02:03.7]} 13... Qc7 {[%clk 0:02:47.7]} 14.
Rac1 {[%clk 0:01:07.7]} 14... Rac8 {[%clk 0:02:47.9]} 15. Kh1 {[%clk 0:00:55.8]}
15... Rfd8 {[%clk 0:02:46.5]} 16. Rfe1 {[%clk 0:00:51.8]} 16... h6 {[%clk
0:02:43.4]} 17. Qf2 {[%clk 0:00:49.8]} 17... Nf8 {[%clk 0:02:39]} 18. Nd1 {[%clk
0:00:48.5]} 18... Ng6 {[%clk 0:02:29.4]} 19. e5 {[%clk 0:00:48.9]} 19... dxe5
{[%clk 0:02:27.2]} 20. Bxg6 {[%clk 0:00:48.5]} 20... fxg6 {[%clk 0:02:14.1]} 21.
Nxe5 {[%clk 0:00:48.7]} 21... Ne4 {[%clk 0:02:09.4]} 22. Qe3 {[%clk 0:00:45.7]}
22... Rd2 {[%clk 0:02:07.4]} 23. Re2 {[%clk 0:00:40.6]} 23... Rcd8 {[%clk
0:02:02.1]} 24. Nf2 {[%clk 0:00:33.6]} 24... Rxe2 {[%clk 0:01:58.1]} 25. Qxe2
{[%clk 0:00:32.6]} 25... Rd2 {[%clk 0:01:57.8]} 26. Qg4 {[%clk 0:00:24.2]} 26...
Nxf2+ {[%clk 0:01:56.4]} 0-1